bitfinex-derivatives/quotes_ETHF0:USTF0_20210111
["timestamp","ask_amount","ask_price","bid_price","bid_amount"]
[1610323202451,4.00959,1255.3,1253.3,5.6313]
[1610323202652,4.00959,1255.3,1253.4,30.0]
[1610323202850,2.5025,1256.4,1253.4,30.0]
[1610323203253,2.2389,1256.7,1253.4,30.0]
[1610323203449,2.3771,1257.7,1253.4,30.0]
[1610323203650,4.00959,1256.6,1255.5,4.00959]
[1610323205752,4.00959,1256.6,1256.2,4.00959]
[1610323209659,4.00959,1256.6,1256.5,4.00959]
[1610323209859,4.00959,1256.6,1256.5,2.3935]
[1610323212465,5.5303,1259.0,1256.5,2.3935]
[1610323213464,5.9087,1260.3,1256.5,32.3935]
[1610323213666,4.00959,1258.4,1257.1,4.00959]
[1610323215667,6.1325019,1258.3,1257.6,4.00959]
[1610323216667,6.1325019,1258.3,1257.6,34.00959]
[1610323217468,6.131248,1258.9,1257.6,35.86829]
[1610323217670,6.131248,1258.9,1258.8,4.00959]
[1610323218070,6.131248,1258.9,1258.8,6.42099]
[1610323218869,6.1288715,1260.2,1258.8,6.42099]
[1610323219670,6.1288715,1260.2,1259.7,4.00959]
[1610323219871,6.1288715,1260.2,1259.7,6.33169]
[1610323221575,6.1287049,1261.7,1259.7,6.33169]
[1610323221776,4.00959,1260.2,1259.7,6.33169]
[1610323222376,1.6558,1260.7,1259.7,6.33169]
[1610323223178,6.1284937,1260.1,1259.7,6.33169]
[1610323224180,6.1284937,1260.1,1259.7,2.3221]
[1610323224779,6.1284937,1260.1,1258.8,2.4114]
[1610323225078,6.1284937,1260.1,1257.7,35.5359]
[1610323225279,6.1284937,1260.1,1257.7,30.0]
[1610323225480,6.1284937,1260.1,1256.7,6.0699]
[1610323225681,4.00959,1259.1,1258.8,4.00959]
[1610323226681,4.00959,1259.1,1256.6,30.0]
[1610323227582,4.00959,1259.1,1253.5,30.0]
[1610323227781,4.00959,1258.4,1257.4,4.00959]
[1610323227981,4.00959,1258.4,1253.5,30.0]
[1610323228981,5.5397,1258.3,1253.5,30.0]
[1610323229684,4.00959,1257.6,1256.0,4.00959]
[1610323230686,2.0814,1258.2,1256.0,4.00959]
[1610323230887,2.0814,1258.2,1256.0,6.03159]
[1610323231486,6.1325399,1258.1,1256.0,6.03159]
[1610323231686,4.00959,1257.1,1256.4,4.00959]
[1610323233794,4.00959,1257.3,1256.4,4.00959]
[1610323233992,1.9792,1257.9,1256.4,4.00959]
[1610323234194,2.0814,1258.2,1256.4,6.12589]
[1610323234694,30.0,1260.3,1256.4,6.12589]
[1610323235094,5.8869,1259.3,1256.4,6.12589]
[1610323235594,6.1319194,1258.4,1256.4,6.12589]
[1610323235797,4.00959,1257.4,1256.4,2.1163]
[1610323237797,4.00959,1256.5,1256.4,2.1163]
[1610323239100,4.00959,1256.5,1256.0,2.022]
[1610323239500,4.00959,1256.5,1255.9,4.00959]
[1610323239905,2.3275,1257.5,1255.9,5.71759]
[1610323240104,2.3275,1257.5,1255.9,35.71759]
[1610323240503,20.97489024,1258.0,1255.9,35.71759]
[1610323240905,20.97196807,1258.3,1255.9,35.71759]
[1610323241103,20.97196807,1258.3,1255.9,5.71759]
[1610323241303,20.97145708,1258.4,1255.9,5.71759]
[1610323241503,6.13256934,1257.7,1255.9,5.71759]
[1610323241705,6.13256934,1257.7,1257.3,4.00959]
[1610323241905,6.13256934,1257.7,1257.3,6.30649]
[1610323242905,5.9381,1258.5,1257.3,6.30649]
[1610323243106,3.0,1257.9,1257.3,6.30649]
[1610323243705,3.0,1257.9,1257.8,4.00959]
[1610323244105,3.0,1257.9,1257.8,5.90119]
[1610323245606,9.1310109,1257.9,1257.8,5.90119]
[1610323246008,0.2174109,1257.9,1257.8,5.90119]
[1610323247007,5.9381,1258.5,1257.8,5.90119]
[1610323247807,5.9381,1258.5,1258.4,4.00959]
[1610323248207,5.9381,1258.5,1258.4,5.90499]
[1610323250008,11.91855538,1258.5,1258.4,5.90499]
[1610323252709,11.91855538,1258.5,1258.4,1.8954]
[1610323253109,11.91855538,1258.5,1257.8,1.8916]
[1610323253312,11.91855538,1258.5,1257.3,2.2969]
[1610323253512,11.91855538,1258.5,1254.9,30.0]
[1610323253911,4.00959,1257.9,1254.7,30.0]
[1610323254310,4.00959,1257.9,1255.7,1.21754749]
[1610323254712,4.00959,1257.9,1255.7,3.20634749]
[1610323255716,5.98189298,1257.8,1255.7,1.9888]
[1610323255916,4.00959,1257.1,1256.4,4.00959]
[1610323256116,2.1653,1257.2,1256.4,4.00959]
[1610323257217,1.799,1258.3,1256.4,4.00959]
[1610323257817,4.00959,1258.1,1257.5,4.00959]
[1610323258719,5.98089179,1258.2,1257.5,4.00959]
[1610323259820,5.98089179,1258.2,1258.1,4.00959]
[1610323260021,5.98000013,1258.4,1258.1,4.00959]
[1610323261924,5.98000013,1258.4,1258.3,4.00959]
[1610323262723,5.98000013,1258.4,1257.7,2.0134]
[1610323263123,35.98000013,1258.4,1257.3,1.5993]
[1610323263324,5.98000013,1258.4,1257.3,1.5993]
[1610323263524,5.98000013,1258.4,1256.2,1.5352]
[1610323263725,5.98000013,1258.4,1255.7,1.9888]
[1610323263924,4.00959,1257.1,1256.6,4.00959]
[1610323264528,4.00959,1257.1,1254.8,3.405]
[1610323265729,6.10890831,1257.0,1254.9,1.21834776]
[1610323265927,6.10890831,1257.0,1256.4,4.00959]
[1610323269731,6.10887084,1257.3,1256.4,4.00959]
[1610323269931,4.00959,1256.7,1256.4,4.00959]
[1610323271835,4.735,1257.0,1256.4,4.00959]
[1610323272737,3.0,1257.0,1256.4,4.00959]
[1610323273839,10.11886961,1256.9,1256.6,4.00959]
[1610323275239,10.11886961,1256.9,1256.2,2.1477]
[1610323275439,6.10984546,1256.8,1256.2,2.1477]
[1610323275645,6.10984546,1256.8,1254.6,3.405]
[1610323276043,4.00959,1256.2,1255.9,4.00959]
[1610323278142,22.69035964,1256.7,1255.9,4.00959]
[1610323278944,2.1928,1256.7,1255.9,4.00959]
[1610323279745,2.1928,1256.7,1255.7,1.7661]
[1610323279945,4.00959,1256.2,1255.7,5.77569]
[1610323280745,2.2934,1256.4,1255.7,5.77569]
[1610323282347,6.1103879,1256.3,1255.7,5.77569]
[1610323284048,10.1199779,1256.3,1256.1,4.00959]
[1610323284248,10.1199779,1256.3,1255.7,1.7661]
[1610323284549,10.1199779,1256.3,1255.4,1.6818]
[1610323285150,6.11033357,1256.2,1255.4,1.6818]
[1610323285950,6.11033357,1256.2,1255.6,4.00959]
[1610323287752,6.11033357,1256.2,1255.2,52.3335]
[1610323287953,6.11016683,1256.3,1255.0,2.2541]
[1610323288355,26.6169736,1256.3,1255.0,2.2541]
[1610323288754,20.50767489,1256.2,1255.0,2.2541]
[1610323289155,20.51008821,1256.0,1255.0,2.2541]
[1610323289354,20.51008821,1256.0,1252.8,5.5336]
[1610323289554,22.48908821,1256.0,1252.8,5.5336]
[1610323289757,26.43813323,1255.9,1252.8,5.5336]
[1610323289955,4.00959,1254.5,1254.4,4.00959]
[1610323291155,4.00959,1254.5,1252.8,5.5336]
[1610323291354,4.00959,1254.5,1252.6,3.405]
[1610323291555,4.00959,1254.5,1251.8,0.24420209]
[1610323291755,4.00959,1254.5,1251.6,5.7382804]
[1610323291956,19.5507828,1254.3,1253.2,4.00959]
[1610323292359,19.55218034,1254.1,1253.2,4.00959]
[1610323292558,19.55218034,1254.1,1252.7,1.22064358]
[1610323292759,19.55284622,1254.0,1252.7,1.22064358]
[1610323293159,19.555188,1253.9,1252.7,1.22064358]
[1610323293560,21.837788,1253.9,1252.7,1.22064358]
[1610323293760,19.5570061,1253.8,1251.6,1.22123118]
[1610323293961,25.0686061,1253.8,1252.7,4.00959]
[1610323294359,19.55967489,1253.7,1252.7,6.32229]
[1610323294760,19.56039391,1253.5,1252.7,6.32229]
[1610323294962,19.57144544,1253.4,1252.7,2.3127]
[1610323295360,19.57144544,1253.4,1251.1,5.873]
[1610323295560,19.57316753,1253.3,1250.4,3.405]
[1610323295962,19.57316753,1253.3,1252.5,4.00959]
[1610323296661,19.57487696,1253.2,1252.5,4.00959]
[1610323296961,19.57487696,1253.2,1252.3,1.5448]
[1610323297361,62.4032,1252.9,1252.3,1.5448]
[1610323297962,4.00959,1252.4,1252.3,1.5448]
[1610323300066,4.00959,1252.4,1251.9,4.00959]
[1610323300463,4.00959,1252.4,1251.0,56.1668]
[1610323301469,5.94199,1252.4,1251.0,56.1668]
[1610323301668,18.60998998,1251.9,1251.0,56.1668]
[1610323302072,18.61143488,1251.6,1251.0,56.1668]
[1610323302672,18.61230959,1251.5,1251.0,56.1668]
[1610323303672,18.61269925,1251.4,1251.0,56.1668]
[1610323303873,2.0094,1252.1,1251.0,56.1668]
[1610323303874,18.61395735,1251.3,1251.0,56.1668]
[1610323304070,4.00959,1251.1,1251.0,56.1668]
[1610323304470,18.61405454,1251.2,1248.6,5.97155733]
[1610323304675,18.61405454,1251.2,1248.6,8.0767]
[1610323305074,18.61405454,1251.2,1248.6,8.3215573]
[1610323306073,18.61405454,1251.2,1250.5,4.00959]
[1610323306273,18.61405454,1251.2,1250.5,6.28619]
[1610323306475,18.61664084,1251.3,1250.5,6.28619]
[1610323306874,18.6165938,1251.4,1250.5,6.28619]
[1610323307676,18.61190772,1251.6,1250.5,6.28619]
[1610323308076,18.61190772,1251.6,1250.5,2.2766]
[1610323308678,18.61329663,1251.4,1250.5,2.2766]
[1610323309077,16.6582373,1250.9,1250.5,2.2766]
[1610323309479,16.66026483,1250.7,1250.5,2.2766]
[1610323310077,16.66026483,1250.7,1250.6,4.00959]
[1610323310379,16.66026483,1250.7,1250.5,2.2766]
[1610323310777,16.66104013,1250.6,1250.5,2.2766]
[1610323310977,18.62208775,1250.7,1250.5,2.2766]
[1610323311377,18.62303426,1250.6,1250.3,1.563]
[1610323311978,4.00959,1250.4,1250.3,1.563]
[1610323313178,19.613078,1250.6,1250.3,1.563]
[1610323313979,19.61000393,1250.7,1250.5,4.00959]
[1610323314381,23.61913387,1250.8,1250.5,4.00959]
[1610323314584,23.61913387,1250.8,1250.3,1.563]
[1610323314782,19.60858167,1250.7,1249.7,45.9786157]
[1610323315082,16.66886184,1250.1,1249.7,45.9786157]
[1610323315484,16.66957182,1250.0,1249.7,45.9786157]
[1610323316083,20.67916182,1250.0,1248.6,2.35]
[1610323316283,4.00959,1250.0,1249.9,2.4773]
[1610323318485,4.00959,1250.0,1249.5,1.8671]
[1610323318885,19.62495317,1249.7,1249.5,1.8671]
[1610323319285,19.62534292,1249.6,1249.5,1.8671]
[1610323319686,4.00959,1250.0,1248.6,2.35]
[1610323319886,24.61962565,1250.0,1246.4,0.24529916]
[1610323320085,20.61003565,1250.0,1248.1,4.00959]
[1610323320286,16.68576381,1248.6,1248.1,2.2512]
[1610323321288,16.68564384,1248.7,1248.1,2.2512]
[1610323321488,16.68419542,1248.8,1248.1,2.2512]
[1610323321788,16.68346905,1248.9,1248.1,2.2512]
[1610323322188,16.6819612,1249.0,1248.8,6.25529]
[1610323322788,16.68193867,1249.1,1248.8,6.25529]
[1610323323190,16.68147212,1249.2,1248.8,6.25529]
[1610323323789,16.68262196,1249.1,1248.8,6.25529]
[1610323323989,16.68262196,1249.1,1248.8,2.2457]
[1610323324189,4.00959,1248.9,1248.8,2.2457]
[1610323324391,20.69407368,1248.9,1248.8,2.2457]
[1610323325391,4.00959,1248.9,1248.8,2.2457]
[1610323325792,22.65944552,1248.9,1248.8,2.2457]
[1610323326392,4.00959,1248.9,1248.8,2.2457]
[1610323326792,4.00959,1248.9,1247.4,47.5133057]
[1610323327392,16.68714659,1248.6,1247.4,47.5133057]
[1610323328093,16.68714659,1248.6,1248.1,4.00959]
[1610323328294,16.68714659,1248.6,1248.1,6.51569]
[1610323328493,16.69009969,1248.5,1248.1,6.51569]
[1610323329493,16.69099717,1248.4,1248.1,6.51569]
[1610323330595,16.69099717,1248.4,1248.1,2.5061]
[1610323330798,16.69386401,1248.3,1248.1,2.5061]
[1610323330996,16.69386401,1248.3,1247.4,47.5133057]
[1610323331198,18.65835799,1248.3,1247.4,47.5133057]
[1610323331600,14.73326578,1247.7,1247.4,47.5133057]
[1610323331801,14.7349092,1247.6,1246.8,54.362]
[1610323332001,14.7349092,1247.6,1245.4,0.24549999]
[1610323332201,4.00959,1247.2,1245.4,0.24549999]
[1610323332603,4.00959,1247.2,1245.2,0.24556757]
[1610323333001,14.74049788,1247.0,1244.9,0.2455931]
[1610323333201,4.00959,1247.2,1245.5,1.22698633]
[1610323333202,20.71644786,1247.2,1245.5,1.22698633]
[1610323333402,20.71644786,1247.2,1245.5,3.74048633]
[1610323334201,16.70685786,1247.2,1247.1,5.57909]
[1610323334603,16.70399476,1247.3,1247.1,5.57909]
[1610323335005,16.70317214,1247.5,1247.1,5.57909]
[1610323335205,16.70261159,1247.7,1247.1,5.57909]
[1610323335604,25.57686461,1248.3,1247.1,1.5695]
[1610323335605,16.70126334,1247.8,1247.1,1.5695]
[1610323336008,5.9276,1248.3,1247.1,1.5695]
[1610323336009,16.70219036,1247.6,1247.1,1.5695]
[1610323336206,4.00959,1247.2,1247.1,1.5695]
[1610323337305,4.00959,1247.2,1245.5,2.5135]
[1610323337706,22.68526222,1247.2,1245.5,2.5135]
[1610323337905,16.71048524,1247.0,1245.5,2.5135]
[1610323338106,16.71048524,1247.0,1246.9,4.00959]
[1610323338305,18.67567222,1247.2,1246.9,4.00959]
[1610323338507,16.71049553,1247.2,1246.9,4.00959]
[1610323338908,16.7085576,1247.4,1246.9,1.5571]
[1610323339308,14.74089401,1247.1,1246.9,1.5571]
[1610323339708,14.73776686,1247.3,1246.9,1.5571]
[1610323340109,14.73493323,1247.7,1247.2,4.00959]
[1610323340509,14.7336723,1247.8,1247.2,5.96279]
[1610323341510,14.73490435,1247.7,1247.2,5.96279]
[1610323342213,14.73490435,1247.7,1247.6,5.62779]
[1610323342414,14.73480194,1247.8,1247.6,5.62779]
[1610323342915,14.73480194,1247.8,1247.6,2.20419]
[1610323343324,14.73585936,1247.7,1247.6,1.6182]
[1610323343517,18.66739942,1247.9,1247.6,1.6182]
[1610323343918,18.6690384,1247.8,1247.6,1.6182]
[1610323344121,4.00959,1247.7,1247.6,1.6182]
[1610323344319,30.67581953,1247.7,1247.6,1.6182]
[1610323344716,12.00519,1247.7,1247.6,1.6182]
[1610323344923,12.00519,1247.7,1247.2,1.9532]
[1610323345317,18.67474811,1247.3,1247.2,1.9532]
[1610323345519,18.67474811,1247.3,1246.9,1.5571]
[1610323345718,19.65948603,1247.6,1246.1,47.7455]
[1610323345920,14.74577428,1246.7,1246.1,49.7085]
[1610323346119,14.74577428,1246.7,1246.4,4.00959]
[1610323346516,14.74577428,1246.7,1246.4,6.19249]
[1610323346716,14.74505503,1246.8,1246.4,6.19249]
[1610323347117,14.74487958,1246.7,1246.4,6.19249]
[1610323347322,14.7431541,1246.9,1246.5,1.22706306]
[1610323347616,14.7418801,1247.0,1246.5,1.22706306]
[1610323348015,14.74108892,1247.1,1246.5,1.22706306]
[1610323348216,14.7408448,1247.2,1247.0,4.00959]
[1610323348415,14.7408448,1247.2,1247.0,5.56089]
[1610323348919,14.74052351,1247.1,1247.0,5.56089]
[1610323349518,14.74052351,1247.1,1247.0,1.5513]
[1610323349718,16.70741043,1247.2,1247.0,1.5513]
[1610323350019,16.70794015,1247.1,1247.0,1.5513]
[1610323350219,20.71753015,1247.1,1246.7,4.00959]
[1610323350620,16.70956716,1247.0,1246.4,2.1829]
[1610323350818,16.70956716,1247.0,1246.1,1.963]
[1610323351018,14.7446231,1246.7,1246.1,1.963]
[1610323351221,14.7446231,1246.7,1245.5,54.6179]
[1610323351619,14.74551628,1246.6,1245.5,54.6179]
[1610323352019,14.74655462,1246.5,1245.5,54.6179]
[1610323352218,14.74655462,1246.5,1246.0,4.00959]
[1610323352418,14.74776648,1246.4,1246.0,4.00959]
[1610323352618,14.74808617,1246.3,1246.0,5.75959]
[1610323353019,14.74865725,1246.4,1246.0,5.75959]
[1610323353718,14.7486944,1246.5,1246.0,5.75959]
[1610323354121,14.74661838,1246.6,1246.0,5.75959]
[1610323354319,16.71217897,1246.8,1246.0,5.75959]
[1610323354320,14.74630472,1246.8,1246.4,5.54619]
[1610323355119,14.74690033,1246.7,1246.4,5.54619]
[1610323355819,14.74739229,1246.6,1246.4,1.5366]
[1610323356218,4.00959,1246.5,1246.4,1.5366]
[1610323356619,4.00959,1246.5,1246.0,1.75]
[1610323357220,14.75371446,1246.1,1244.6,65.0681]
[1610323357421,4.00959,1246.5,1244.6,65.0681]
[1610323357422,12.79273618,1245.4,1244.6,65.0681]
[1610323357821,12.79714468,1245.1,1244.6,65.0681]
[1610323358223,12.79727616,1244.9,1244.6,69.07769]
[1610323358723,12.79661192,1245.0,1244.6,69.07769]
[1610323358920,12.79661192,1245.0,1244.6,70.67649]
[1610323359121,23.62545189,1245.0,1244.6,70.67649]
[1610323359721,23.62478181,1245.1,1244.6,70.67649]
[1610323360122,23.62137212,1245.3,1244.6,70.67649]
[1610323360321,23.62137212,1245.3,1245.2,4.00959]
[1610323360520,38.37871343,1245.5,1245.2,4.00959]
[1610323360721,23.61842649,1245.5,1245.2,5.75809]
[1610323361121,23.61568474,1245.6,1245.2,5.75809]
[1610323361722,23.61616527,1245.7,1245.2,5.75809]
[1610323362223,38.3731518,1245.8,1245.6,4.00959]
[1610323362422,38.3731518,1245.8,1245.6,6.10279]
[1610323362623,38.3731518,1245.8,1245.6,2.0932]
[1610323362822,38.3731518,1245.8,1244.6,1.5988]
[1610323362823,23.61673391,1245.7,1244.6,1.5988]
[1610323363024,38.37773154,1245.6,1244.6,1.5988]
[1610323363423,23.61956605,1245.4,1244.6,1.5988]
[1610323363822,23.62126436,1245.3,1244.6,1.5988]
[1610323364023,38.3839878,1245.3,1244.4,54.8669]
[1610323364223,4.00959,1244.7,1244.5,4.00959]
[1610323364726,38.3902828,1244.9,1244.5,4.00959]
[1610323364923,38.3902828,1244.9,1244.5,5.76219]
[1610323365326,23.62575714,1244.8,1244.5,5.76219]
[1610323365524,38.38998359,1244.9,1244.5,5.76219]
[1610323365926,23.62524712,1244.9,1244.5,5.76219]
[1610323366227,38.38949889,1245.0,1244.8,4.00959]
[1610323366426,38.38949889,1245.0,1244.8,5.62499]
[1610323367026,23.62513471,1244.9,1244.8,5.62499]
[1610323367230,16.73549138,1245.1,1244.8,5.62499]
[1610323367431,16.73549138,1245.1,1244.8,1.6154]
[1610323367628,16.73627866,1245.0,1244.8,1.6154]
[1610323368234,20.74586866,1245.0,1244.8,1.6154]
[1610323368634,16.7361326,1244.9,1244.8,1.6154]
[1610323368833,18.71619408,1244.9,1244.8,1.6154]
[1610323369034,18.71619408,1244.9,1243.2,61.9375]
[1610323369433,18.72050882,1244.6,1243.2,61.9375]
[1610323369634,38.44042278,1243.8,1243.2,61.9375]
[1610323370034,38.43942455,1243.7,1243.2,61.9375]
[1610323370236,23.65635238,1243.6,1243.3,4.00959]
[1610323370934,23.65663753,1243.5,1243.3,4.00959]
[1610323371536,38.44291646,1243.5,1243.3,4.00959]
[1610323372137,38.44726017,1243.4,1243.3,4.00959]
[1610323372337,47.32251557,1243.4,1243.3,4.00959]
[1610323372735,3.0,1244.0,1243.3,4.00959]
[1610323372736,32.53354401,1243.5,1243.3,6.40299]
[1610323372939,22.52034401,1243.5,1243.3,6.40299]
[1610323373137,12.81359295,1243.7,1243.3,6.40299]
[1610323373337,12.8131966,1243.8,1243.3,6.40299]
[1610323374037,12.81214759,1243.9,1243.3,6.40299]
[1610323374237,12.81214759,1243.9,1243.8,4.00959]
[1610323374438,15.81137315,1244.0,1243.8,6.14419]
[1610323374840,3.0,1244.0,1242.6,58.26358847]
[1610323375039,3.0,1244.0,1243.8,2.064]
[1610323375439,16.74857855,1244.7,1243.8,2.064]
[1610323375440,12.80677485,1244.6,1243.8,2.064]
[1610323375840,12.80583069,1244.7,1243.9,1.22948687]
[1610323376239,19.69862691,1245.6,1243.9,1.22948687]
[1610323376240,27.57654753,1244.9,1244.6,4.00959]
[1610323376439,12.80094227,1245.0,1244.6,5.55329]
[1610323376840,12.80046472,1245.1,1244.6,5.55329]
[1610323378040,14.76900985,1245.2,1244.6,5.55329]
[1610323378041,12.80164728,1245.2,1244.6,5.55329]
[1610323378241,12.80164728,1245.2,1245.1,4.00959]
[1610323378442,78.89885571,1245.4,1245.1,6.51989]
[1610323378842,66.0988,1245.4,1245.1,6.51989]
[1610323379241,12.79648066,1245.7,1245.1,6.51989]
[1610323379642,12.79475206,1245.9,1245.1,6.51989]
[1610323379843,12.79298619,1246.1,1245.1,6.51989]
[1610323380043,12.79298619,1246.1,1245.2,1.22810946]
[1610323380242,14.76038122,1246.2,1245.2,1.22810946]
[1610323380243,12.79151103,1246.2,1246.0,4.00959]
[1610323380443,12.79151103,1246.2,1246.0,5.93329]
[1610323381243,27.55130025,1246.1,1246.0,5.93329]
[1610323381443,14.75927384,1246.1,1246.0,5.93329]
[1610323381843,27.55155619,1246.2,1246.0,5.93329]
[1610323382143,12.79214524,1246.2,1246.0,5.93329]
[1610323382545,12.78999416,1246.3,1246.0,5.93329]
[1610323382744,12.78967279,1246.4,1246.0,5.93329]
[1610323383544,12.7888663,1246.5,1246.0,5.93329]
[1610323383944,12.78794968,1246.4,1246.0,5.93329]
[1610323384346,12.78826323,1246.5,1246.3,4.00959]
[1610323384646,14.75496429,1246.4,1246.3,5.58359]
[1610323385347,16.72163731,1246.6,1246.3,5.58359]
[1610323385548,16.32163731,1246.6,1246.3,5.58359]
[1610323385750,16.72196677,1246.5,1246.3,5.58359]
[1610323385949,18.68998384,1246.6,1246.3,5.58359]
[1610323386357,18.68998384,1246.6,1246.5,4.00959]
[1610323386552,19.67401478,1246.9,1246.5,4.00959]
[1610323387753,18.6901946,1246.6,1246.5,4.00959]
[1610323387953,18.68589557,1246.8,1246.5,4.00959]
[1610323388356,14.75113349,1246.6,1246.4,1.7463]
[1610323388752,12.78428239,1246.7,1246.4,1.7463]
[1610323389349,27.53328816,1246.8,1246.4,1.7463]
[1610323389750,12.78237536,1246.8,1246.4,1.7463]
[1610323390150,12.78303384,1246.7,1246.4,1.7463]
[1610323390351,4.00959,1246.9,1246.6,4.00959]
[1610323390550,4.00959,1246.9,1246.4,1.7463]
[1610323390751,18.68660791,1246.8,1246.4,1.7463]
[1610323391051,18.68697947,1246.7,1246.4,1.7463]
[1610323391250,18.68697947,1246.7,1246.0,1.9237]
[1610323391451,18.69039881,1246.6,1246.3,66.3936]
[1610323391653,18.69039881,1246.6,1245.1,2.5103]
[1610323391852,4.00959,1246.9,1244.6,1.5437]
[1610323391853,12.7910601,1245.8,1244.6,1.5437]
[1610323392053,12.79098915,1245.7,1243.7,0.24588599]
[1610323392451,12.79098915,1245.7,1245.6,4.00959]
[1610323392657,12.79098915,1245.7,1245.6,5.72849]
[1610323392855,18.69582277,1246.1,1245.6,5.72849]
[1610323394459,18.69870015,1246.0,1245.6,5.72849]
[1610323394658,6.48969,1246.5,1245.6,5.72849]
[1610323394659,18.69999031,1245.8,1245.6,5.72849]
[1610323394857,18.69999031,1245.8,1245.6,1.7189]
[1610323395061,18.70231896,1245.7,1245.6,1.7189]
[1610323395259,19.68989957,1245.9,1242.9,0.24606223]
[1610323395459,22.00399957,1245.9,1242.9,2.53176223]
[1610323395659,23.63832133,1244.6,1242.9,2.2857]
[1610323396058,38.41552365,1244.5,1242.9,2.2857]
[1610323396458,38.41552365,1244.5,1244.4,4.00959]
[1610323396658,38.41552365,1244.5,1244.4,5.81629]
[1610323396659,14.77444399,1244.5,1244.4,5.81629]
[1610323397059,23.64127471,1244.5,1244.4,5.81629]
[1610323397358,23.64208331,1244.6,1244.4,5.81629]
[1610323397557,23.63771547,1244.7,1244.4,5.81629]
[1610323397960,23.63543656,1244.9,1244.4,5.81629]
[1610323398358,14.77091735,1245.0,1244.8,4.00959]
[1610323398359,23.63252894,1245.0,1244.8,4.00959]
[1610323398559,23.63252894,1245.0,1244.8,5.76739]
[1610323399061,38.40128467,1245.0,1244.8,5.76739]
[1610323399261,23.63235519,1244.9,1244.8,5.76739]
[1610323399661,23.63186838,1245.0,1244.8,5.76739]
[1610323400061,38.40101653,1245.0,1244.8,5.76739]
[1610323400665,23.63191319,1244.9,1244.8,5.76739]
[1610323401267,38.40136418,1244.9,1244.8,5.76739]
[1610323401466,38.40136418,1244.9,1244.4,1.8067]
[1610323401666,16.73903455,1245.1,1243.9,60.6083]
[1610323401866,38.40518388,1244.7,1243.9,60.6083]
[1610323402067,38.40518388,1244.7,1243.9,62.3043]
[1610323402266,38.41049724,1244.6,1243.9,62.3043]
[1610323402466,38.41049724,1244.6,1244.4,4.00959]
[1610323402667,23.63877189,1244.5,1244.4,4.00959]
[1610323403969,23.63799543,1244.6,1244.4,4.00959]
[1610323404370,23.63582353,1244.9,1244.4,4.00959]
[1610323404769,23.63501499,1244.8,1244.4,4.00959]
[1610323405171,23.63621645,1244.9,1244.4,4.00959]
[1610323405572,38.40860149,1244.9,1244.4,4.00959]
[1610323405772,38.41260578,1244.7,1244.4,4.00959]
[1610323406172,38.41361227,1244.6,1244.4,4.00959]
[1610323406573,23.6415012,1244.5,1244.4,4.00959]
[1610323406874,38.41640933,1244.5,1244.4,4.00959]
[1610323407074,14.77490813,1244.5,1244.4,4.00959]
[1610323407373,23.6424302,1244.5,1244.4,4.00959]
[1610323407773,23.63909878,1244.6,1244.4,4.00959]
[1610323408273,23.6380117,1244.7,1244.4,4.00959]
[1610323408474,23.6380117,1244.7,1244.6,4.00959]
[1610323408874,23.6380117,1244.7,1244.6,6.17309]
[1610323409976,38.41116613,1244.7,1244.6,6.17309]
[1610323410376,14.77315443,1244.7,1244.6,2.1635]
[1610323410578,16.7434583,1244.9,1244.4,4.00959]
[1610323411177,38.41821696,1244.5,1244.4,4.00959]
[1610323411377,16.74512193,1244.7,1244.4,4.00959]
[1610323411680,16.74675538,1244.5,1244.4,4.00959]
[1610323412078,16.74653399,1244.6,1244.4,4.00959]
[1610323412278,16.74549845,1244.7,1244.4,4.00959]
[1610323412479,16.74549845,1244.7,1244.6,4.00959]
[1610323412680,18.71497783,1244.9,1244.6,5.96819]
[1610323412681,16.74290296,1244.9,1244.6,5.96819]
[1610323413081,23.63734473,1244.8,1244.6,5.96819]
[1610323413482,38.40353903,1245.0,1244.6,5.96819]
[1610323413681,23.63148221,1245.1,1244.6,5.96819]
[1610323414083,38.40088654,1245.1,1244.6,5.96819]
[1610323414382,22.69089861,1246.0,1244.6,1.9586]
[1610323414383,23.63474416,1244.9,1244.6,1.9586]
[1610323414784,38.40585165,1244.9,1244.6,1.9586]
[1610323414983,23.63377329,1245.0,1244.6,1.9586]
[1610323415382,38.40357765,1245.1,1244.6,1.9586]
[1610323415782,23.63412817,1245.0,1244.6,1.9586]
[1610323415983,23.63163275,1245.1,1244.6,1.9586]
[1610323416383,23.63082902,1245.3,1245.0,4.00959]
[1610323416782,23.63082902,1245.3,1245.0,6.25069]
[1610323417584,38.40341067,1245.2,1245.0,6.25069]
[1610323417784,23.63313103,1245.1,1245.0,6.25069]
[1610323417983,23.63313103,1245.1,1245.0,2.2411]
[1610323418386,38.40701427,1245.1,1244.3,2.3171]
[1610323418584,38.40701427,1245.1,1243.9,1.696]
[1610323418585,4.00959,1245.1,1243.9,1.696]
[1610323418987,23.64561915,1244.5,1242.8,30.0]
[1610323419184,23.64561915,1244.5,1242.4,0.24620595]
[1610323419385,38.42443765,1244.4,1242.3,0.2462158]
[1610323419784,23.64656537,1244.4,1243.4,58.0467]
[1610323419986,23.64656537,1244.4,1243.4,59.8145]
[1610323420586,23.64656537,1244.4,1244.3,4.00959]
[1610323420791,23.64546253,1244.5,1244.3,5.52589]
[1610323421190,14.77718306,1244.6,1244.3,5.52589]
[1610323421191,23.64341033,1244.6,1244.3,5.52589]
[1610323421390,23.64183965,1244.7,1244.3,5.52589]
[1610323422592,23.64183965,1244.7,1244.6,4.00959]
[1610323423492,14.77669428,1244.7,1244.6,4.00959]
[1610323423693,3.0,1245.0,1243.7,1.7727]
[1610323423694,16.74788981,1244.8,1243.7,1.7727]
[1610323424092,23.64823651,1244.4,1243.7,1.7727]
[1610323424492,23.64838863,1244.3,1243.7,1.7727]
[1610323424792,23.64811332,1244.4,1243.7,1.7727]
[1610323425194,38.42707932,1244.4,1243.7,1.7727]
[1610323425593,23.64832209,1244.3,1243.7,1.7727]
[1610323426595,27.65791209,1244.3,1244.1,4.00959]
[1610323426797,23.64978383,1244.2,1244.1,4.00959]
[1610323427195,14.78141577,1244.2,1244.1,4.00959]